Cogmind - Beta 13 @@@ ROGUE MODE // 2024.04.04 @ 18:42:21 Player: SadFrogster Result: Destroyed by G-50 Soldier with Heavy Laser Performance ------------- Evolutions (1) 500 Regions Visited (5) 1000 Robots Destroyed (32) 160 Value Destroyed (931) 931 Prototype IDs (3) 60 Alien Tech Used (0) 0 Bonus (509) 509 TOTAL SCORE: 3160 Bonus ------- Follower Combat Kills 209 Aligned with FarCom 300 Cogmind --------- Core Integrity 0/400 Matter 72/300 Energy 100/100 System Corruption 4% Temperature Cool (9) Movement Core (1350) Ox26 Location -8/Mines Parts ------- > --- POWER (1) -------- (None) > --- PROPULSION (2) --- (None) > --- UTILITY (4) ------ Huge Storage Unit > --- WEAPON (2) ------- (None) > --- INVENTORY (25) --- Hacking Suite Peak State ------------ > --- POWER ------------ Ion Engine > --- PROPULSION ------- Light Treads Light Treads > --- UTILITY ---------- Huge Storage Unit Structural Scanner Sensor Array Hardened Light Armor Plating > --- WEAPON ----------- Firepult > --- INVENTORY -------- Ion Engine Light Treads Hardened Light Armor Plating Hacking Suite Light Assault Rifle AWS/Gauss Light Cannon Light Cannon Light Cannon EMP Blaster Grenade Launcher Grenade Launcher [Rating: 31] Favorites ----------- Power Ion Engine Engine Ion Engine Propulsion Light Treads Treads Light Treads Utility Huge Storage Unit Device Structural Scanner Storage Huge Storage Unit Protection Hardened Light Armor Plating Weapon Light Cannon Energy Cannon Firepult Ballistic Gun Autogun Ballistic Cannon Light Cannon Launcher Grenade Launcher Special Weapon Field Lobotomy Kit Build | -11 -10 -9 -9 -9 -8 ------- Run | Yrd Mat Mat Min Exi Min Slots Evolved 2 | . . 2 . . . Power . | . . . . . . Propulsion . | . . . . . . Utility 2 | . . 2 . . . Weapon . | . . . . . . Parts Attached 37 | 5 13 2 . 6 11 Power 3 | 1 . . . . 2 Engine 3 | 1 . . . . 2 Core . | . . . . . . Reactor . | . . . . . . Propulsion 4 | 2 . . . . 2 Treads 4 | 2 . . . . 2 Leg . | . . . . . . Wheel . | . . . . . . Hover . | . . . . . . Flight . | . . . . . . Utility 14 | 1 9 2 . 2 . Device 5 | . 4 1 . . . Storage 5 | 1 4 . . . . Processor . | . . . . . . Hackware . | . . . . . . Protection 4 | . 1 1 . 2 . Artifact . | . . . . . . Weapon 16 | 1 4 . . 4 7 Energy Gun . | . . . . . . Energy Cannon 1 | . . . . 1 . Ballistic Gun 5 | 1 2 . . 1 1 Ballistic Cannon 6 | . 2 . . 1 3 Launcher 3 | . . . . . 3 Special Weapon 1 | . . . . 1 . Impact Weapon . | . . . . . . Slashing Weapon . | . . . . . . Piercing Weapon . | . . . . . . Special Melee Weapon . | . . . . . . Unidentified Prototypes 3 | . . . . 3 . Corrupted Parts 1 | . . . . . 1 System Corruption 4 | . . . . . 4 Parts Lost 17 | . . . . 1 16 Power 3 | . . . . . 3 Propulsion 4 | . . . . . 4 Utility 4 | . . . . 1 3 Weapon 6 | . . . . . 6 Highest Loss Streak 10 | . . . . 1 10 To Critical Strikes . | . . . . . . Average Slot Usage (%) 98 | . 98 100 100 99 70 Engine 11 | . 14 11 11 11 8 Treads 23 | . 28 22 22 22 8 Device 17 | . 11 22 22 21 6 Storage 11 | . 13 11 11 11 11 Protection 8 | . 2 11 11 11 15 Ballistic Gun 2 | . 7 . . . 1 Ballistic Cannon 19 | . 20 22 22 20 5 Naked Turns . | . . . . . . Heaviest Build 107 | 11 92 98 98 107 107 Greatest Support 40 | 40 40 40 40 40 40 Greatest Overweight (x) 33 | . 2 2 2 2 33 Average Overweight (x) 1 | . 1 2 2 2 6 Largest Inventory Capacity 25 | 8 25 25 25 25 25 Average Capacity 23 | 6 20 25 25 25 25 Most Carried 15 | 1 12 9 9 15 9 Average Carried 8 | . 8 8 9 9 5 Final Capacity 25 | 8 25 25 25 25 25 Final Carried 10 | 1 10 9 9 9 1 Class Distribution -------------------- 100% | Mutant Dominant Class ---------------- Mutant | -10/Materials Mutant | -9/Materials Mutant | -9/Mines Mutant | -9/Exiles Mutant | -8/Mines Resources | -11 -10 -9 -9 -9 -8 ----------- Run | Yrd Mat Mat Min Exi Min Matter Collected 876 | 201 451 69 . . 155 Remotely . | . . . . . . Salvage Created 863 | . 492 89 . . 282 Parts 61 | . 42 9 . . 10 Haulers Intercepted . | . . . . . . Recyclers Shooed . | . . . . . . Parts Field Recycled . | . . . . . . Retrieved Matter . | . . . . . . Parts Self-Destructed . | . . . . . . Prevented . | . . . . . . Kills | -11 -10 -9 -9 -9 -8 ------- Run | Yrd Mat Mat Min Exi Min Combat Hostiles Destroyed 22 | . 11 5 . . 6 Guns 6 | . 6 . . . . Cannons 12 | . 5 5 . . 2 AOE 4 | . . . . . 4 Classes Destroyed 7 | . 4 1 . . 2 Worker 1 | . . . . . 1 Builder 4 | . 3 . . . 1 Recycler 1 | . . . . . 1 Operator 1 | . 1 . . . . Watcher 3 | . 2 1 . . . Swarmer 2 | . . 2 . . . Grunt 20 | . 11 3 . . 6 Best Kill Streak 8 | . 8 2 . . 4 Combat Bots Only 3 | . 3 2 . . 2 Max Kills in Single Turn 2 | . 1 1 . . 2 Gunslinging . | . . . . . . Exploded 1 | . . . . . 1 Melee . | . . . . . . Uniques/NPCs Destroyed . | . . . . . . Combat | -11 -10 -9 -9 -9 -8 -------- Run | Yrd Mat Mat Min Exi Min Hostile Shots Fired 225 | . 52 25 . 2 146 Missed 66 | . 16 6 . . 44 Damage Taken 2428 | . 434 188 . 75 1731 Core 473 | . 66 10 . . 397 Absorbed by Shields . | . . . . . . Core Remaining (%) 86 | 100 73 . . . . Volleys Fired 74 | . 34 13 . 2 25 Largest 2 | . 2 2 . 2 2 Hottest 70 | . 70 70 . 35 70 Shots Fired 139 | . 68 26 . 4 41 Gun 44 | . 38 . . . 6 Cannon 72 | . 30 26 . 2 14 Launcher 18 | . . . . . 18 Special 5 | . . . . 2 3 Kinetic 116 | . 68 26 . 2 20 Thermal . | . . . . . . Explosive 14 | . . . . . 14 Electromagnetic 4 | . . . . . 4 Robot Hit Streak 8 | . 8 4 . 1 8 Robot Miss Streak 5 | . 4 5 . 3 3 Penetration Max . | . . . . . . Secondary Targets 1 | . 1 . . . . Max Gunslinging Chain 1 | . 1 . . . . Shots Hit Robots 81 | . 41 10 . 1 29 Core Hits 50 | . 24 6 . . 20 Critical Kills . | . . . . . . Critical Parts Destroyed 1 | . 1 . . . . Critical Strikes 1 | . 1 . . . . Destroy 1 | . 1 . . . . Melee Attacks . | . . . . . . Impact . | . . . . . . Slashing . | . . . . . . Piercing . | . . . . . . Sneak Attacks . | . . . . . . Combat Hostiles . | . . . . . . Follow-up Attacks . | . . . . . . Damage Inflicted 1910 | . 665 205 . . 1040 Guns 408 | . 374 . . . 34 Cannons 704 | . 291 205 . . 208 Explosions 798 | . . . . . 798 Melee . | . . . . . . Ramming . | . . . . . . Kinetic 1112 | . 665 205 . . 242 Thermal 45 | . . . . . 45 Explosive 655 | . . . . . 655 Electromagnetic 98 | . . . . . 98 Impact . | . . . . . . Slashing . | . . . . . . Piercing . | . . . . . . Highest Corruption 4 | . . . . . 4 Average Corruption 4 | . . . . . 4 Corruption Purged . | . . . . . . Corruption Blocked . | . . . . . . Effects 3 | . . . . . 3 Matter Fused 2 | . . . . . 2 Parts Rejected 1 | . . . . . 1 Overload Shots . | . . . . . . Overflow Damage 21 | . . . . . 21 Projectiles . | . . . . . . Explosions 21 | . . . . . 21 Melee . | . . . . . . Knockbacks 8 | . 3 1 . . 4 Impact . | . . . . . . Kinetic 7 | . 2 1 . . 4 Secondary 1 | . 1 . . . . Self-Inflicted Damage 104 | . . . . . 104 Shots 6 | . . . . . 6 Rammed . | . . . . . . Targets Rammed . | . . . . . . Kicked . | . . . . . . Crushed . | . . . . . . Highest Temperature 236 | . 105 66 . . 236 Average Temperature 41 | . 29 25 . . 60 Received Heat Transfer 1179 | . 237 60 . . 882 Siege Activations . | . . . . . . Robots Corrupted . | . . . . . . Combat Hostiles . | . . . . . . Parts Fried 1 | . . . . . 1 Impact Corruptions . | . . . . . . Robots Melted . | . . . . . . Combat Hostiles . | . . . . . . Parts Melted . | . . . . . . Heat Transferred 50 | . . . . . 50 Parts Sabotaged . | . . . . . . Parts Stolen . | . . . . . . Parts Stripped . | . . . . . . Power Chain Reactions 1 | . . . . . 1 Alert | -11 -10 -9 -9 -9 -8 ------- Run | Yrd Mat Mat Min Exi Min Peak Influence 236 | . 193 197 . . 236 Initial 29 | . . 29 . . . Average 62 | . 50 67 . . 156 Maximum Alert Level 1 | . . . . . 1 Low Security (%) 96 | 100 100 100 100 . 60 Level 1 3 | . . . . . 40 Level 2 . | . . . . . . Level 3 . | . . . . . . Level 4 . | . . . . . . Level 5 . | . . . . . . High Security . | . . . . . . Max Security . | . . . . . . Squads Dispatched 4 | . 2 2 . . . Investigation 1 | . 1 . . . . Extermination . | . . . . . . Reinforcement 3 | . 1 2 . . . Assault . | . . . . . . Garrison . | . . . . . . Intercept . | . . . . . . Searches Triggered . | . . . . . . Construction Impeded . | . . . . . . Haulers Reinforced . | . . . . . . Active Scanning Responses . | . . . . . . Cargo Convoy Interrupts . | . . . . . . Stealth | -11 -10 -9 -9 -9 -8 --------- Run | Yrd Mat Mat Min Exi Min Distress Signals 2 | . 1 1 . . . Communications Jammed . | . . . . . . Distress Signals . | . . . . . . Times Spotted 50 | . 20 7 . 1 22 Peak Tracking Total 8 | . 4 2 . 1 8 Tactical Retreats 3 | . . . . . 3 Traps | -11 -10 -9 -9 -9 -8 ------- Run | Yrd Mat Mat Min Exi Min Traps Triggered 1 | . 1 . . . . Indirectly . | . . . . . . Trap Hack Attempts . | . . . . . . Triggered . | . . . . . . Disarmed . | . . . . . . Reprogrammed . | . . . . . . Reused . | . . . . . . Traps Extracted . | . . . . . . Installed . | . . . . . . Triggered . | . . . . . . Machines | -11 -10 -9 -9 -9 -8 ---------- Run | Yrd Mat Mat Min Exi Min Machines Disabled 3 | . 2 . . 1 . Max in Single Turn 1 | . 1 . . 1 . Machines Repaired . | . . . . . . Machines Dismantled . | . . . . . . Machines Sabotaged . | . . . . . . Overloaded Fab Kills . | . . . . . . Hacking | -11 -10 -9 -9 -9 -8 --------- Run | Yrd Mat Mat Min Exi Min Machines Accessed 7 | . 3 . . 4 . Terminals 3 | . 3 . . . . Fabricators . | . . . . . . Repair Stations . | . . . . . . Recycling Units . | . . . . . . Scanalyzers . | . . . . . . Garrison Access . | . . . . . . Total Hacks 56 | . 7 . . 49 . Successful 53 | . 4 . . 49 . Failed 3 | . 3 . . . . Catastrophic 1 | . 1 . . . . Database Lockouts . | . . . . . . Manual 5 | . 2 . . 3 . Terminals 7 | . 7 . . . . Fabricators . | . . . . . . Repair Stations . | . . . . . . Recycling Units . | . . . . . . Scanalyzers . | . . . . . . Garrison Access . | . . . . . . Terminal Hacks 53 | . 4 . . 49 . Record 53 | . 4 . . 49 . Fabricator Hacks . | . . . . . . Repair Station Hacks . | . . . . . . Recycling Unit Hacks . | . . . . . . Scanalyzer . | . . . . . . Garrison Access Hacks . | . . . . . . Unauthorized Hacks . | . . . . . . Terminals . | . . . . . . Fabricators . | . . . . . . Repair Stations . | . . . . . . Recycling Units . | . . . . . . Scanalyzers . | . . . . . . Garrison Access . | . . . . . . Data Cores Recovered . | . . . . . . Used . | . . . . . . Hacking Detections 1 | . 1 . . . . Full Trace Events 1 | . 1 . . . . Feedback Events . | . . . . . . Feedback Blocked . | . . . . . . Robot Schematics Acquired . | . . . . . . Robots Built . | . . . . . . Authchips . | . . . . . . Time . | . . . . . . Total Robot Build Rating . | . . . . . . Part Schematics Acquired . | . . . . . . Parts Built . | . . . . . . Authchips . | . . . . . . Time . | . . . . . . Total Part Build Rating . | . . . . . . Parts Repaired . | . . . . . . Time . | . . . . . . Parts Recycled . | . . . . . . Recycled Matter . | . . . . . . Retrieved Matter . | . . . . . . Retrieved Components . | . . . . . . Parts Scanalyzed . | . . . . . . Part Schematics Acquired . | . . . . . . Parts Damaged . | . . . . . . Bothacking | -11 -10 -9 -9 -9 -8 ------------ Run | Yrd Mat Mat Min Exi Min Used RIF Installer . | . . . . . . Robots Hacked . | . . . . . . Non-combat . | . . . . . . Combat . | . . . . . . Robot Hacks Applied . | . . . . . . Relay Couplers Released . | . . . . . . Fabnet Peak Effective % . | . . . . . . Robots Rewired . | . . . . . . Allies Hacked . | . . . . . . Hacks Repelled . | . . . . . . Allies | -11 -10 -9 -9 -9 -8 -------- Run | Yrd Mat Mat Min Exi Min Total Allies 4 | . . . . 1 3 Largest Group 2 | . . . . 1 2 Highest-Rated Group 34 | . . . . 34 32 Highest-Rated Ally 34 | . . . . 34 16 Total Orders . | . . . . . . Ally Attacks 28 | . . . . 3 25 Total Damage 776 | . . . . 356 420 Kills 7 | . . . . 3 4 Allies Corrupted 1 | . . . . . 1 Allies Melted . | . . . . . . Field Lobotomies 4 | . . . . 1 3 Intel | -11 -10 -9 -9 -9 -8 ------- Run | Yrd Mat Mat Min Exi Min Robot Analysis Total . | . . . . . . Derelict Logs Recovered . | . . . . . . Drone Launches . | . . . . . . Drone Recoveries . | . . . . . . Exploration | -11 -10 -9 -9 -9 -8 ------------- Run | Yrd Mat Mat Min Exi Min Turns Passed 5294 | 70 1584 752 80 2553 255 Spaces Moved 1674 | 41 571 214 26 792 30 Core 6 | 3 . . . . 3 Treads 1668 | 38 571 214 26 792 27 Legs . | . . . . . . Wheels . | . . . . . . Hover . | . . . . . . Flight . | . . . . . . Fastest Speed 50 | 50 160 320 320 320 320 Average Speed 296 | 151 247 320 320 320 615 Slowest Speed 1700 | 160 320 320 320 320 1700 Overloaded Moves . | . . . . . . Propulsion Burnouts . | . . . . . . Robots Hopped . | . . . . . . Cave-ins Triggered . | . . . . . . Exploration Rate (%) 38 | 3 86 21 12 92 14 Regions Visited 5 Branch Regions 3 Pre-discovered Areas 1 | . . . . 1 . Known Exits Taken . | . . . . . . Unknown Exits Taken 5 | 1 1 1 1 1 . Scrap Searched . | . . . . . . Spaces Dug . | . . . . . . Terrain Destroyed 96 | . . . . . 96 Melee . | . . . . . . Projectile . | . . . . . . AOE 96 | . . . . . 96 Terrain Rammed . | . . . . . . Walls Destroyed . | . . . . . . Machines Disabled . | . . . . . . Actions | -11 -10 -9 -9 -9 -8 --------- Run | Yrd Mat Mat Min Exi Min Total 1890 | 46 687 257 25 809 66 Wait 72 | . 43 28 . 1 . Move 1669 | 40 570 213 25 791 30 Hop . | . . . . . . Pick Up 16 | 1 13 1 . 1 . Fast Attach 15 | 5 5 . . 3 2 Attach 15 | . 2 2 . 3 8 Detach 10 | . 5 . . 5 . Swap 7 | . 6 . . . 1 Drop 12 | . 9 . . 3 . Fire 74 | . 34 13 . 2 25 Melee . | . . . . . . Ram . | . . . . . . Kick . | . . . . . . Crush . | . . . . . . Escape Stasis . | . . . . . . Rewire . | . . . . . . Trap . | . . . . . . Miscellaneous . | . . . . . . Route ------- -11/Scrapyard -10/Materials (discovered 4 exits: [*Mat x2] / [*Min x2]) -9/Materials -9/Mines -9/Exiles -8/Mines History --------- Turn | Location | Event 37 | -11/Scrapyard | Discovered new exit (range 16) 71 | -11/Scrapyard | Entered Materials 178 | -10/Materials | Discovered new exit (range 14) 306 | -10/Materials | Build established: Mutant 421 | -10/Materials | Discovered new exit (range 11) 683 | -10/Materials | Discovered new exit (range 13) 1153 | -10/Materials | Discovered new exit (range 10) 1655 | -10/Materials | Entered another Materials area 1655 | -9/Materials | Evolved 2 slots: Utility x2 2209 | -9/Materials | Discovered new exit (range 11) 2407 | -9/Materials | Entered Mines 2468 | -9/Mines | Deemed a non-threat by the Exiles lab entrance 2468 | -9/Mines | Discovered new exit (range 6) 2487 | -9/Mines | Entered Exiles 2567 | -9/Exiles | Met 8R-AWN 2622 | -9/Exiles | Met EX-HEX 2715 | -9/Exiles | Met EX-BIN 3038 | -9/Exiles | Met EX-DEC 3121 | -9/Exiles | Learned location of Zion (-7) 3736 | -9/Exiles | Visited The Gauntlet 4292 | -9/Exiles | Discovered new exit (range 10) 4564 | -9/Exiles | Aligned with FarCom system 4567 | -9/Exiles | Given EX-Vault access code 4644 | -9/Exiles | Opened EX-Vault 4660 | -9/Exiles | Found Prototype Ballistic Gun 4665 | -9/Exiles | Identified AWS/Gauss 4677 | -9/Exiles | Found Prototype Energy Cannon 4677 | -9/Exiles | Identified Firepult 4705 | -9/Exiles | Found Prototype Special Weapon 4705 | -9/Exiles | Identified Field Lobotomy Kit 4786 | -9/Exiles | Exiles lab attacked by MAIN.C 4872 | -9/Exiles | Assimilated D-53 Grenadier with FLK Orb 5040 | -9/Exiles | Left Exiles lab with Field Lobotomy Kit 5040 | -9/Exiles | Entered Mines 5040 | -8/Mines | Assimilated G-47 Trooper with FLK Orb 5044 | -8/Mines | Assimilated L-31 Rogue with FLK Orb 5060 | -8/Mines | Assimilated G-47 Trooper with FLK Orb 5111 | -8/Mines | Lost 4 parts (1p2n1w) 5235 | -8/Mines | Core integrity fell below 50% 5279 | -8/Mines | Core integrity fell below 20% 5295 | -8/Mines | Destroyed by G-50 Soldier with Heavy Laser Last Messages --------------- 05248_ EMP Blaster destroyed. 05250_ Slug penetrates Wall. 05256_ Lgt. Cannon destroyed. 05258_ G-47 Trooper destroyed. 05260_ Slug penetrates Wall. 05260_ Lgt. Treads destroyed. 05261_ G-47 Trooper knocked back. 05263_ U-05 Engineer lays Concrete. 05267_ U-05 Engineer builds a Wall. 05268_ Penetrated by Slug. 05269_ System corrupted: Matter fused (-10). 05271_ U-05 Engineer builds a Wall. 05272_ R-06 Scavenger collects Particle Gun. 05276_ U-05 Engineer builds a Wall. 05277_ Ion Engine destroyed. 05280_ U-05 Engineer lays Concrete. 05284_ G-47 Trooper knocked back. 05288_ System corrupted: Lgt. Assault Rifle rejected. 05290_ G-47 Trooper knocked back. 05291_ Lgt. Cannon destroyed. Map ----- +----------------------------------------------------+ | ?????????????????????????????????????????????????? | | ?????????????????????????????????????????????????? | | ?????????????????????#####???????????????????????? | | ?????????????????????## ## ####????? ??????????? | | ?????????????????????## ########? ##??????????? | | ??????????????????????## ######### ##??????????? | | ??????????????????????## ## # ## ##??????????? | | ?????????????????????? #### # ##??????????? | | ?????????????????????? """ # ##??????????? | | ???????????????????????""" # ????????????? | | ????????????????????????"" # # ##????????????? | | ???????????????????????? ## %## ##????????????? | | ????????????????????????##### # ###????????????? | | ????????????????????????## ## # ##?????????????? | | ????????????????????????### # #####?????????????? | | ?????????????????????????## # #####????????????? | | ?????????????????????????### ####????????????? | | ?????????????????????????## ####???????????? | | ?????????????????????????## ###???????????? | | ?????????????????????????### ##???????????? | | ?????????????????????????##### %####???????????? | | ??????????????????????????## #%* #???????????? | | ??????????? s ???????????## ! # ## ???? | | ???????????? s s ???????####/ % # ??? | | ?????????????????# ####### =## ## ??? | | ?????????????s????# g@[!%g==## # ??? | | ??????????????????# ######%% # %! ????? | | ??????????????????## ?????###g%! # " ???? | | ???????????????????#??????? %l # #"%### #???? | | ????????????????????????????##%=###### "###??????? | | ????????????????????????????##! ###???? ##???????? | | ????????????????????????????# #????? ##???????? | | ????????????????????????????? ?????? ##???????? | | ????????????????????????????# #???????????????? | | ????????????????????????????## ???????????????? | | ????????????????????????????### ???????????????? | | ?????????????????????????????## ??????????????? | | ??????????????????????????????? ??????????????? | | ??????????????????????????????? ?????????????? | | ??????????????????????????????? ??????????????? | | ???????????????????????????????# ????????????????? | | ?????????????????????????????????????????????????? | | ?????????????????????????????????????????????????? | | ?????????????????????????????????????????????????? | | ?????????????????????????????????????????????????? | | ?????????????????????????????????????????????????? | | ?????????????????????????????????????????????????? | | ?????????????????????????????????????????????????? | | ?????????????????????????????????????????????????? | | ?????????????????????????????????????????????????? | +----------------------------------------------------+ Best States ------------- Heat Dissipation 39 Energy Generation 15 Energy Capacity 250 Matter Stores 300 Matter Capacity 300 Sight Range 16 Robot Scan Range 14 Terrain Scan Density 10 Armor Coverage 300 Evasion (%) 40 Recoil Reduction 2 Item Schematics ----------------- None Robot Schematics ------------------ None Fabricated ------------ Nothing Alien Tech Used ----------------- None Achievements -------------- None Challenges ------------ None Game ------ Seed MassHardlightConstruct Manual? 0 Play Time 00:35:18 Cumulative 5.9 hours Start 2024.04.04 @ 18:05:04 End 2024.04.04 @ 18:42:21 Sessions 1 Manual Loads 0 Difficulty Rogue Special Mode None Game No. 6 Rogue 2 Adventurer 2 Explorer 2 Win Type - Total 0 Types 0/0/0/0/0/0/0/0/0 Lore% 13 Gallery% 11 Achievement% 10 Wizard Run 0 Options --------- Layout 0 ASCII 0 Keyboard 1 Movement Numpad Keybinds 0 Fullscreen 1 Font 18/X11Bold Map View 76x50 Zoom Use 0% Tactical HUD 1 Map Filters NONE Filters NONE Steam 1 RUN: 3debdbcf-63e9-43f7-b8e7-4ecb45fc5175